bitfinex/quotes_ETHUSD_20240819
["timestamp","ask_amount","ask_price","bid_price","bid_amount"]
[1724071181403,3.85843,2591.8,2590.7,2.3076]
[1724071181602,7.71742,2591.6,2590.9,4.024]
[1724071181799,3.85899,2591.4,2590.7,5.3076]
[1724071182001,3.85943,2591.1,2590.7,2.3076]
[1724071182262,3.85923,2591.2,2590.5,2.3076]
[1724071182263,0.05910924,2591.0,2590.5,2.3076]
[1724071182459,4.245153,2591.2,2590.5,2.3076]
[1724071182746,0.05910924,2591.1,2590.5,2.3076]
[1724071182951,0.48953546,2591.1,2590.5,2.3076]
[1724071183713,0.385923,2591.2,2590.5,2.3076]
[1724071184149,0.05910924,2591.1,2590.5,2.3076]
[1724071187556,0.05910924,2591.1,2590.7,2.4472]
[1724071187774,6.31504,2591.5,2590.7,2.4472]
[1724071187926,0.05910924,2591.0,2590.7,2.4472]
[1724071188123,3.85884,2591.5,2590.7,2.4472]
[1724071188339,0.05935678,2590.9,2590.7,2.4472]
[1724071188684,6.14957,2591.7,2590.7,2.4472]
[1724071188685,0.05935678,2590.8,2590.7,2.4472]
[1724071188824,0.05935678,2590.8,2590.7,7.67112]
[1724071189021,0.05935678,2590.8,2590.7,9.4712]
[1724071189220,7.48,2591.6,2590.8,2.4472]
[1724071189478,7.48,2591.6,2590.8,5.4472]
[1724071189764,0.05935678,2591.5,2590.8,5.4472]
[1724071191055,0.05935678,2591.5,2590.9,2.4339]
[1724071191371,0.05935678,2591.5,2591.0,2.4339]
[1724071192366,2.2989,2591.9,2591.0,2.4339]
[1724071192566,0.05935678,2591.4,2591.0,2.4339]
[1724071192864,2.2989,2591.9,2591.0,2.4339]
[1724071193169,0.05935678,2591.3,2591.0,2.4339]
[1724071193339,1.3637,2591.8,2591.0,2.4339]
[1724071193667,0.05935678,2591.2,2591.0,2.4339]
[1724071193834,1.3637,2591.8,2591.0,2.4339]
[1724071194251,0.05935678,2591.7,2591.0,2.4339]
[1724071194450,0.43155246,2591.7,2591.0,2.4339]
[1724071196551,0.05935678,2591.7,2591.0,2.4339]
[1724071200312,0.05935678,2591.7,2591.3,2.3566]
[1724071200475,7.48,2592.3,2591.6,2.474]
[1724071200807,0.05935678,2592.2,2591.6,2.474]
[1724071201036,0.05935678,2592.2,2591.6,5.474]
[1724071202404,3.85803,2592.0,2591.4,2.3351]
[1724071202849,0.06064838,2591.9,2591.4,2.3351]
[1724071203312,5.38693008,2592.2,2591.4,2.3351]
[1724071203667,0.06019037,2591.8,2591.6,2.3565]
[1724071203955,0.06018434,2591.7,2591.6,2.3565]
[1724071204108,1.28669301,2592.1,2591.6,2.3565]
[1724071204309,0.06018434,2591.7,2591.6,2.3565]
[1724071204556,1.28669301,2592.1,2591.6,2.3565]
[1724071204723,0.06018434,2591.7,2591.6,2.3565]
[1724071204920,7.48,2592.3,2591.6,2.3565]
[1724071205108,0.06018434,2591.7,2591.6,2.3565]
[1724071205305,7.48,2592.3,2591.6,2.3565]
[1724071205534,7.48,2592.3,2591.7,2.3058]
[1724071206053,7.48,2592.3,2591.9,2.3819]
[1724071206259,11.48689,2592.7,2591.9,2.3819]
[1724071207950,7.6299,2592.7,2591.9,2.3819]
[1724071208161,1.75684399,2592.6,2591.9,2.3819]
[1724071208463,5.61399399,2592.6,2591.9,2.3819]
[1724071208774,3.85745,2592.4,2591.9,2.3819]
[1724071211363,5.61402399,2592.6,2591.9,2.3819]
[1724071211657,1.75684399,2592.6,2591.9,2.3819]
[1724071213171,5.1816734,2592.5,2591.9,2.3819]
[1724071214434,0.06016623,2592.4,2591.9,2.3819]
[1724071217266,0.06016623,2592.4,2592.1,4.024]
[1724071217465,0.06016623,2592.4,2592.2,2.2996]
[1724071217666,7.6299,2592.7,2592.2,2.2996]
[1724071217867,0.06030503,2592.3,2592.2,2.2996]
[1724071218260,7.6299,2592.7,2592.2,2.2996]
[1724071218456,0.06030503,2592.3,2592.2,2.2996]
[1724071218658,7.6299,2592.7,2592.2,2.2996]
[1724071218969,7.6299,2592.7,2592.4,4.024]
[1724071218970,0.1499,2592.7,2592.4,4.024]
[1724071219194,0.06030503,2592.6,2592.5,2.3451]
[1724071220081,0.06030503,2592.6,2592.5,5.4222326]
[1724071220725,0.06030503,2592.6,2592.5,40.8951]
[1724071221020,0.06030503,2592.6,2592.5,45.11692358]
[1724071221475,0.06030503,2592.6,2592.5,44.27115533]
[1724071222014,0.06030503,2592.6,2592.5,8.72115533]
[1724071222216,0.06030503,2592.6,2592.5,5.3451]
[1724071222419,0.06030503,2592.6,2592.5,5.8951]
[1724071223578,0.1499,2592.7,2592.6,2.3484]
[1724071223778,0.1499,2592.7,2592.6,5.3484]
[1724071224007,0.1499,2592.7,2592.6,6.703876]
[1724071227478,0.1499,2592.7,2592.6,7.253876]
[1724071228331,11.33505,2594.0,2592.7,2.4228]
[1724071228618,18.5055,2594.1,2593.3,2.4228]
[1724071228619,0.06108296,2593.9,2593.3,2.4228]
[1724071228823,3.85521,2593.9,2593.3,2.4228]
[1724071229139,0.06108296,2593.8,2593.3,2.4228]
[1724071229421,11.33485,2594.2,2593.4,0.64468]
[1724071229621,0.06108296,2593.7,2593.4,0.64468]
[1724071229822,11.33477,2594.2,2593.4,0.64468]
[1724071229992,0.06108296,2593.6,2593.5,4.70785412]
[1724071230193,7.48,2594.2,2593.5,7.630748]
[1724071230401,0.06108296,2593.6,2593.5,7.630748]
[1724071230707,0.06108296,2593.6,2593.5,10.075848]
[1724071230880,6.10617,2594.5,2593.5,10.625848]
[1724071231087,0.610605,2594.4,2593.6,3.0]
[1724071231310,0.610605,2594.4,2593.8,4.024]
[1724071231311,0.06108296,2594.4,2593.8,4.024]
[1724071231827,0.06108296,2594.3,2593.8,4.024]
[1724071232311,3.85425,2594.6,2593.9,2.3929]
[1724071232622,3.85425,2594.6,2593.9,5.3929]
[1724071232822,0.06108296,2594.5,2593.9,6.33459]
[1724071233517,3.91547296,2594.5,2593.9,6.33459]
[1724071233686,3.91547296,2594.5,2593.9,5.3929]
[1724071234800,7.76986296,2594.5,2593.9,5.3929]
[1724071235100,3.91546296,2594.5,2593.9,5.3929]
[1724071235677,3.85461,2594.3,2593.9,5.3929]
[1724071236095,0.06318678,2594.2,2594.0,3.0]
[1724071236411,3.85461,2594.3,2593.6,5.4534]
[1724071236621,0.06318678,2594.1,2593.6,6.2164748]
[1724071236777,3.85461,2594.3,2593.6,6.2164748]
[1724071236984,10.13534,2594.5,2593.6,6.2164748]
[1724071237183,0.06318678,2594.2,2593.7,1.02404748]
[1724071237434,7.48,2594.6,2593.9,2.3962]
[1724071237583,7.48,2594.6,2594.0,0.64202]
[1724071237584,0.06313257,2594.1,2594.0,0.64202]
[1724071237778,7.48,2594.6,2593.9,2.3962]
[1724071237985,0.06313257,2594.5,2594.0,0.0770936]
[1724071238300,0.06313257,2594.5,2594.2,2.4764]
[1724071238513,0.06313257,2594.5,2594.2,5.4764]
[1724071238828,1.0,2594.8,2594.2,5.55348888]
[1724071239026,1.0,2594.8,2594.2,5.55348611]
[1724071239182,4.41757357,2594.7,2594.2,3.0]
[1724071239387,3.8544,2594.5,2593.9,5.2605]
[1724071239623,3.85446,2594.4,2593.9,5.2605]
[1724071239781,3.85446,2594.4,2593.9,2.2605]
[1724071239782,3.91759257,2594.4,2593.9,2.2605]
[1724071240211,3.85461,2594.3,2593.5,4.024]
[1724071240383,3.85461,2594.3,2593.6,2.2756]
[1724071240593,0.06313257,2594.2,2593.6,2.2756]
[1724071240793,3.91796257,2594.2,2593.6,2.2756]
[1724071241032,3.8549,2594.1,2593.6,2.2756]
[1724071241411,0.06313257,2594.0,2593.3,2.2756]
[1724071241628,3.85527,2593.9,2593.3,2.2756]
[1724071241781,3.85551,2593.7,2593.2,4.024]
[1724071241981,0.385527,2593.8,2593.2,4.024]
[1724071242220,0.06313257,2593.7,2593.2,4.024]
[1724071242827,3.91863257,2593.7,2593.2,4.024]
[1724071243198,7.77425257,2593.7,2593.2,4.024]
[1724071243405,10.08783257,2593.7,2593.0,2.2756]
[1724071243583,6.23223257,2593.7,2593.0,3.71270458]
[1724071244016,6.23223257,2593.7,2593.1,3.0]
[1724071244528,3.91863257,2593.7,2593.1,3.0]
[1724071244683,3.85589,2593.5,2593.1,3.0]
[1724071244887,3.85596,2593.4,2593.0,3.0]
[1724071245088,3.85596,2593.4,2592.9,4.024]
[1724071245089,3.85622,2593.3,2592.8,2.3523]
[1724071245411,1.06567757,2593.4,2592.5,2.3523]
[1724071245412,3.85655,2593.0,2592.5,2.3523]
[1724071245983,0.06313257,2592.9,2592.5,2.3523]
[1724071246731,3.85626,2593.2,2592.6,4.024]
[1724071246895,0.06313257,2592.8,2592.6,4.024]
[1724071247084,3.8564,2593.1,2592.6,4.024]
[1724071247282,0.06313257,2592.7,2592.6,4.024]
[1724071247511,3.85626,2593.2,2592.6,7.024]
[1724071247701,0.06313257,2592.7,2592.6,7.024]
[1724071247917,7.71259,2593.2,2592.6,7.024]
[1724071248120,3.85654,2593.0,2592.7,3.0]
[1724071248309,3.85654,2593.0,2592.0,7.27871982]
[1724071248310,3.85683,2592.8,2592.3,4.024]
[1724071248687,0.385654,2592.9,2592.4,3.0]
[1724071248888,3.8567,2592.9,2592.4,3.0]
[1724071249303,6.54914429,2593.2,2592.4,3.0]
[1724071249504,3.85675,2592.9,2592.4,3.0]
[1724071250190,6.54915429,2593.2,2592.4,3.0]
[1724071250191,3.85654,2593.0,2592.4,3.0]
[1724071250493,3.85654,2593.0,2592.4,3.93793]
[1724071251939,3.85679,2592.9,2592.4,3.0]
[1724071252230,3.85738,2592.5,2591.9,2.4852]
[1724071252429,3.85713,2592.6,2591.9,2.4852]
[1724071252585,6.512899,2592.8,2591.9,2.4852]
[1724071252788,3.85699,2592.7,2591.9,2.4852]
[1724071254729,4.242519,2592.8,2592.1,2.3917]
[1724071254895,3.85684,2592.8,2592.1,5.3917]
[1724071255102,3.85684,2592.8,2592.1,6.36327]
[1724071255567,3.85699,2592.7,2592.1,6.36327]
[1724071255683,3.85699,2592.7,2592.1,5.3917]
[1724071255885,7.71379,2592.8,2592.1,5.3917]
[1724071256129,3.85684,2592.8,2592.1,5.3917]
[1724071256332,7.48,2592.9,2592.1,5.3917]
[1724071256501,7.48,2592.9,2592.1,6.36327]
[1724071256999,11.33669,2592.9,2592.1,6.36327]
[1724071257590,3.85669,2592.9,2592.1,6.36327]
[1724071257785,7.71326,2593.0,2592.1,6.36327]
[1724071257982,7.71329,2593.0,2592.2,1.038727]
[1724071258229,7.71329,2593.0,2592.2,4.038727]
[1724071258520,3.85671,2592.9,2592.2,4.038727]
[1724071258895,3.85662,2593.0,2592.2,4.038727]
[1724071259103,3.85662,2593.0,2592.4,2.4275]
[1724071259493,0.06118979,2592.9,2592.4,2.4275]
[1724071260589,11.33617,2593.3,2592.4,5.4275]
[1724071260797,0.06089826,2593.2,2592.6,6.4832]
[1724071260990,0.06089826,2593.2,2592.7,3.0]
[1724071261185,3.85604,2593.4,2592.7,3.0]
[1724071261385,0.06101893,2593.3,2592.7,3.0]
[1724071261620,0.06101893,2593.3,2592.8,0.94832]
[1724071262592,0.06101893,2593.3,2592.9,2.4942]
[1724071262794,3.8558,2593.5,2592.9,2.4942]
[1724071262987,0.06101893,2593.4,2592.9,2.4942]
[1724071263201,0.06101893,2593.4,2593.0,0.344252]
[1724071263637,0.06101893,2593.4,2592.9,2.4942]
[1724071263848,3.85624,2593.2,2592.7,3.0]
[1724071264041,3.91704893,2593.4,2592.6,5.2884]
[1724071264333,0.06076968,2593.1,2592.7,0.95671198]
[1724071264535,3.85603,2593.4,2592.7,3.95671198]
[1724071264738,3.85603,2593.4,2592.8,0.6245112]
[1724071264910,0.06093254,2593.3,2592.8,0.6245112]
[1724071265313,0.06093254,2593.3,2592.7,3.95671198]
[1724071265844,3.8563,2593.2,2592.7,3.0]
[1724071266023,7.71265,2593.2,2592.6,5.2884]
[1724071266346,7.71262,2593.2,2592.6,5.2884]
[1724071266539,0.06093254,2593.1,2592.6,5.2884]
[1724071266831,3.85614,2593.3,2592.6,2.81724]
[1724071267046,3.85623,2593.2,2592.7,3.0]
[1724071267206,0.06093254,2593.2,2592.7,3.0]
[1724071267412,0.06093254,2593.2,2592.7,3.581724]
[1724071269099,3.85597,2593.4,2592.8,2.4191]
[1724071269441,3.85618,2593.3,2592.8,2.4191]
[1724071269612,3.8563,2593.2,2592.7,3.0]
[1724071269959,3.8563,2593.2,2592.6,2.3236]
[1724071269960,3.85646,2593.1,2592.6,2.3236]
[1724071270315,0.06093254,2593.0,2592.6,2.3236]
[1724071270710,0.06093254,2593.0,2592.6,2.85596]
[1724071270862,3.91759254,2593.0,2592.4,3.0]
[1724071271075,3.85671,2592.9,2592.4,3.0]
[1724071271270,3.91764254,2592.9,2592.4,3.0]
[1724071272059,0.06093254,2592.9,2592.4,3.0]
[1724071272232,0.06093254,2592.9,2592.4,4.42816125]
[1724071272963,3.91762254,2592.9,2592.4,4.42816125]
[1724071273462,0.06093254,2592.9,2592.4,4.42816125]
[1724071274854,3.91762254,2592.9,2592.4,3.0]
[1724071275058,3.85698,2592.7,2592.3,3.0]
[1724071275692,3.85698,2592.7,2592.2,7.27871982]
[1724071275693,3.85728,2592.5,2592.2,7.27871982]
[1724071276050,0.06054647,2592.4,2592.2,7.27871982]
[1724071276252,0.06054647,2592.4,2591.9,2.2651]
[1724071276572,3.85714,2592.6,2591.9,5.0661884]
[1724071276745,3.85714,2592.6,2591.9,4.21785038]
[1724071276946,3.8573,2592.5,2591.9,5.06622732]
[1724071277187,3.8573,2592.5,2591.9,5.06627851]
[1724071277341,3.8573,2592.5,2592.0,3.0]
[1724071278298,3.8573,2592.5,2591.8,6.29680073]
[1724071278299,3.85746,2592.4,2591.8,6.29680073]
[1724071278595,3.91794132,2592.3,2591.8,6.29680073]
[1724071278763,3.85781,2592.2,2591.8,3.0]
[1724071278971,0.06032321,2592.1,2591.6,5.4759]
[1724071279166,0.06032321,2592.1,2591.6,2.4759]
[1724071279367,3.91822321,2592.1,2591.6,2.4759]
[1724071280551,4.69581253,2592.1,2591.6,2.4759]
[1724071281049,0.83791253,2592.1,2591.6,2.4759]
[1724071281246,0.06032321,2592.1,2591.6,2.4759]
[1724071282351,3.85765,2592.3,2591.6,2.4759]
[1724071282550,0.06031114,2592.2,2591.6,2.4759]
[1724071283502,3.91806114,2592.2,2591.6,2.4759]
[1724071284251,4.73420525,2592.2,2591.6,2.4759]
[1724071286206,0.06031114,2592.2,2591.6,2.4759]
[1724071287083,6.30733,2592.5,2591.6,2.4759]
[1724071287452,0.05936953,2592.4,2591.6,2.4759]
[1724071287881,0.05936953,2592.4,2591.7,4.024]
[1724071288082,0.05936953,2592.4,2591.8,5.6607]
[1724071289480,2.4399,2592.2,2591.8,3.0]
[1724071289801,0.05941179,2592.1,2591.5,5.3953]
[1724071290003,2.4399,2592.2,2591.6,0.94193]
[1724071290167,0.05941179,2592.1,2591.6,3.94193]
[1724071290368,2.3975,2592.4,2591.7,0.933723]
[1724071290567,0.05941179,2592.3,2591.7,0.933723]
[1724071291603,3.91700179,2592.3,2591.7,0.933723]
[1724071291775,3.91700179,2592.3,2591.6,3.94193]
[1724071294209,0.05941179,2592.3,2591.6,3.94193]
[1724071294705,3.91700179,2592.3,2591.6,3.94193]
[1724071295503,3.91700179,2592.3,2591.7,6.3918]
[1724071295504,0.05941179,2592.3,2591.7,6.3918]
[1724071295708,0.05941179,2592.3,2591.8,3.0]
[1724071295911,6.3443,2592.3,2591.8,3.0]
[1724071296116,0.05907196,2592.2,2591.8,3.0]
[1724071296272,0.05907196,2592.2,2591.8,3.93918]
[1724071296476,6.28626,2592.5,2591.8,3.93918]
[1724071296680,0.05907196,2592.1,2591.8,3.93918]
[1724071296913,6.28626,2592.5,2591.8,3.93918]
[1724071297074,0.05907196,2592.0,2591.8,3.93918]
[1724071297274,6.28626,2592.5,2591.8,3.0]
[1724071297476,0.05907196,2591.9,2591.8,3.0]
[1724071297675,3.85743,2592.4,2591.8,3.0]
[1724071298017,0.05907196,2592.3,2591.8,3.0]
[1724071298515,2.4289,2592.2,2591.8,3.0]
[1724071298718,6.28663,2592.2,2591.5,3.0]
[1724071298891,0.05756745,2592.1,2591.5,3.93058]
[1724071299380,0.05756745,2592.1,2591.5,3.0]
[1724071299730,3.85809,2592.0,2591.4,2.2818]
[1724071300079,0.05759769,2591.9,2591.4,2.2818]
[1724071301456,0.05759769,2591.8,2591.4,7.15468121]
[1724071301628,0.05759769,2591.8,2591.4,8.49562131]
[1724071301959,2.4289,2592.2,2591.5,3.84888121]
[1724071302255,9.7726,2592.6,2591.7,4.024]
[1724071302444,0.05759769,2592.1,2591.8,3.76451503]
[1724071302645,13.6298,2592.6,2591.8,3.76451503]
[1724071302831,0.05759769,2592.0,2591.8,3.76451503]
[1724071303156,13.6298,2592.6,2591.8,3.76451503]
[1724071303362,13.6298,2592.6,2591.9,0.86373551]
[1724071303545,3.85729,2592.5,2591.8,3.76451503]
[1724071303867,3.85746,2592.4,2591.8,3.0]
[1724071304017,3.85746,2592.4,2591.7,3.84889311]
[1724071304352,3.85746,2592.4,2591.7,3.44168708]
[1724071304774,0.05759769,2592.3,2591.7,3.44168708]
[1724071305870,6.22394769,2592.3,2591.6,2.3867]
[1724071306387,6.22394769,2592.3,2591.7,0.84914114]
[1724071306667,6.22394769,2592.3,2591.5,3.0]
[1724071306874,2.36629769,2592.3,2591.6,1.55155658]
[1724071307168,2.36629769,2592.3,2591.7,0.84915658]
[1724071307330,2.36629769,2592.3,2591.8,0.84910774]
[1724071307531,2.36629769,2592.3,2591.6,0.7024]
[1724071307776,2.36629769,2592.3,2591.7,1.2193156]
[1724071308068,2.36629769,2592.3,2591.8,0.8490756]
[1724071308318,2.36629769,2592.3,2591.6,0.7024]
[1724071308490,2.36629769,2592.3,2591.7,0.84903604]
[1724071308772,2.36629769,2592.3,2591.8,0.84903604]
[1724071308957,2.36629769,2592.3,2591.7,0.37024]
[1724071309163,6.22393769,2592.3,2591.6,0.7024]
[1724071309483,6.22393769,2592.3,2591.7,0.84914015]
[1724071309637,3.85775,2592.2,2591.8,0.84914015]
[1724071309836,3.85775,2592.2,2591.6,0.7024]
[1724071310171,2.47049769,2592.1,2591.5,5.4023]
[1724071310373,2.47049769,2592.1,2591.6,0.84916258]
[1724071310581,2.47049769,2592.1,2591.7,0.84916258]
[1724071310871,2.47049769,2592.1,2591.6,3.0]
[1724071310872,0.05759769,2592.1,2591.6,3.0]
[1724071311056,0.05759769,2592.1,2591.7,1.47425308]
[1724071311232,2.4771,2592.3,2591.6,3.0]
[1724071311432,0.05759769,2592.2,2591.7,0.84902831]
[1724071311677,0.05759769,2592.2,2591.8,0.84902831]
[1724071311881,0.05759769,2592.2,2591.6,3.94263]
[1724071312057,6.33481,2592.3,2591.7,0.8490342]
[1724071312245,6.33481,2592.3,2591.6,3.0]
[1724071312246,0.05759769,2592.1,2591.6,3.0]
[1724071312465,6.33481,2592.3,2591.7,0.84899205]
[1724071312638,0.05759769,2592.0,2591.6,3.0]
[1724071312844,7.354035,2592.3,2591.7,0.84906078]
[1724071313140,0.05759769,2591.9,2591.6,3.0]
[1724071313359,7.354035,2592.3,2591.7,0.84908365]
[1724071313565,0.05759769,2591.8,2591.6,3.0]
[1724071313754,7.354035,2592.3,2591.7,0.84906616]
[1724071313958,3.85774,2592.2,2591.6,3.0]
[1724071314279,3.85774,2592.2,2591.7,0.84908683]
[1724071314588,3.85774,2592.2,2591.6,3.0]
[1724071314787,3.85774,2592.2,2591.7,0.84910013]
[1724071314931,4.9788905,2592.2,2591.6,3.0]
[1724071315136,4.9788905,2592.2,2591.7,0.84912815]
[1724071315437,1.1211505,2592.2,2591.6,3.0]
[1724071315907,4.9788905,2592.2,2591.6,3.0]
[1724071316075,3.8581,2592.0,2591.6,3.0]
[1724071316264,3.8581,2592.0,2591.3,3.0]
[1724071316265,6.11521,2591.9,2591.3,3.0]
[1724071316464,6.11521,2591.9,2591.4,0.8492205]
[1724071316673,2.2569,2591.9,2591.5,0.8492205]
[1724071316851,2.2569,2591.9,2591.3,4.43027198]
[1724071317036,2.2569,2591.9,2591.4,0.84924723]
[1724071317235,2.2569,2591.9,2591.3,4.43027198]
[1724071317236,2.2569,2591.9,2591.5,0.84924723]
[1724071317437,2.2569,2591.9,2591.3,3.0]
[1724071317666,2.2569,2591.9,2591.4,0.84922555]
[1724071317939,2.2569,2591.9,2591.5,0.84922555]
[1724071318152,2.2569,2591.9,2591.4,0.7024]
[1724071318351,3.85862,2591.6,2590.9,4.024]
[1724071318638,2.2569,2591.5,2591.0,0.84949599]
[1724071318857,2.2569,2591.5,2590.7,2.2881]
[1724071319178,3.85877,2591.5,2590.8,0.84972225]
[1724071319391,2.2569,2591.4,2590.9,0.84972225]
[1724071319540,2.2569,2591.4,2590.7,1.0756579]
[1724071319541,2.31440702,2591.4,2590.7,1.0756579]
[1724071319777,2.2569,2591.4,2590.8,0.84975163]
[1724071320123,0.05750702,2591.3,2590.7,4.0756579]
[1724071320417,0.05750702,2591.3,2590.8,1.74465277]
[1724071320623,2.2569,2591.4,2590.8,3.89494095]
[1724071320770,0.05750702,2591.3,2590.8,0.89494095]
[1724071323090,0.05750702,2591.3,2590.7,3.0]
[1724071323498,6.11581,2591.4,2590.7,3.0]
[1724071324011,0.05705352,2591.3,2590.7,3.0]
[1724071324417,0.05705352,2591.3,2590.7,4.01618083]
[1724071324578,2.2569,2591.4,2590.7,4.01618083]
[1724071324781,0.05705352,2591.3,2590.7,4.01618083]
[1724071325790,2.2569,2591.4,2590.7,4.01618083]
[1724071326176,0.05705352,2591.3,2590.7,4.01618083]
[1724071326377,0.05705352,2591.3,2590.8,3.6599565]
[1724071326586,0.05705352,2591.3,2590.9,3.0]
[1724071327334,0.05705352,2591.3,2590.7,3.0]
[1724071328839,2.2569,2591.4,2590.7,3.0]
[1724071328840,0.05705352,2591.2,2590.7,3.0]
[1724071329000,2.868467,2591.4,2590.7,3.0]
[1724071329206,0.05705352,2591.3,2590.7,3.0]
[1724071329599,2.4421,2591.2,2590.7,3.0]
[1724071329800,2.4421,2591.1,2590.7,3.0]
[1724071330107,2.4421,2591.1,2590.3,4.024]
[1724071330108,0.05666652,2591.0,2590.3,4.024]
[1724071330305,2.4145,2590.9,2590.3,4.024]
[1724071330693,0.05658789,2590.8,2590.3,4.024]
[1724071331096,2.4145,2590.9,2590.3,7.83345125]
[1724071331423,0.05658789,2590.8,2590.3,7.83345125]
[1724071331624,2.4145,2590.9,2590.4,3.0]
[1724071331812,0.05658789,2590.8,2590.4,3.0]
[1724071332131,2.4145,2590.9,2590.4,3.86668608]
[1724071332509,0.05658789,2590.8,2590.4,3.86668608]
[1724071332905,2.4145,2590.9,2590.4,3.86668608]
[1724071333312,0.05658789,2590.8,2590.4,3.86668608]
[1724071333844,0.05658789,2590.7,2590.4,3.86668608]
[1724071334042,2.4145,2590.9,2590.4,3.86668608]
[1724071334336,0.05658789,2590.8,2590.4,3.86668608]
[1724071335812,0.05658789,2590.8,2590.5,0.78906861]
[1724071337051,0.05658789,2590.8,2590.6,4.024]
[1724071337215,2.4234,2591.2,2590.7,3.0]
[1724071337399,0.05578837,2591.1,2590.7,3.0]
[1724071337605,9.9034,2591.5,2590.9,4.024]
[1724071337834,0.05578837,2591.4,2591.0,3.0]
[1724071338346,0.05578837,2591.4,2591.0,3.7024]
[1724071341056,0.05578837,2591.4,2591.0,3.0]
[1724071341207,0.05578837,2591.4,2590.9,3.0]
[1724071341854,0.05578837,2591.4,2590.8,3.0]
[1724071342016,0.05578837,2591.4,2590.8,4.43027198]
[1724071342619,0.05578837,2591.4,2590.8,6.70517198]
[1724071344820,0.05578837,2591.4,2590.8,7.55505487]
[1724071345469,0.05578837,2591.4,2591.2,6.2936]
[1724071345611,2.3692,2591.8,2591.3,3.0]
[1724071345817,0.05603645,2591.7,2591.3,3.0]
[1724071346018,2.3692,2591.8,2591.3,3.0]
[1724071346330,0.05603645,2591.7,2591.3,3.0]
[1724071346526,0.05603645,2591.7,2591.3,3.07716943]
[1724071346734,2.3692,2591.8,2591.4,1.00001294]
[1724071346910,0.05612719,2591.6,2591.3,3.07716943]
[1724071347116,2.3692,2591.8,2591.3,3.07716943]
[1724071347653,0.05612719,2591.7,2591.3,3.07716943]
[1724071347826,2.3692,2591.8,2591.3,3.07716943]
[1724071348163,0.05612719,2591.7,2591.3,3.0]
[1724071348331,0.05612719,2591.7,2591.3,3.07717092]
[1724071348657,0.05612719,2591.6,2591.3,3.0]
[1724071348829,2.3692,2591.8,2591.3,3.07717096]
[1724071349032,0.05612719,2591.7,2591.3,3.07717095]
[1724071349356,2.3692,2591.8,2591.3,3.07717095]
[1724071349561,0.05612719,2591.6,2591.3,3.07717095]
[1724071349768,2.3692,2591.8,2591.3,4.01424805]
[1724071349970,0.05612719,2591.5,2591.3,3.9370771]
[1724071350171,2.3692,2591.8,2591.3,3.0]
[1724071350672,0.05630166,2591.7,2591.3,3.0]
[1724071350825,2.3692,2591.8,2591.4,0.07716925]
[1724071351023,0.0563017,2591.7,2591.4,0.07716925]
[1724071351227,2.3692,2591.8,2591.4,0.07716925]
[1724071351427,0.0563017,2591.7,2591.4,0.07716925]
[1724071351667,2.3692,2591.8,2591.4,0.07716925]
[1724071351828,0.0563017,2591.7,2591.4,1.01424617]
[1724071352027,2.4001,2592.0,2591.5,0.07716669]
[1724071352232,2.4001,2592.0,2591.5,0.40142436]
[1724071352458,0.05635614,2591.9,2591.5,0.40142436]
[1724071353066,0.05635614,2591.9,2591.3,3.0]
[1724071353433,0.05635614,2591.9,2591.1,3.0]
[1724071353764,0.05635614,2591.9,2591.1,3.8502242]
[1724071353927,0.05635614,2591.9,2591.2,4.024]
[1724071354136,0.05635614,2591.9,2591.4,2.4119]
[1724071355361,0.05635614,2591.9,2591.3,3.0]
[1724071356182,0.05635614,2591.9,2591.4,2.3563]
[1724071357303,0.05635614,2591.9,2591.3,3.0]
[1724071359197,0.68780475,2591.9,2591.3,3.0]
[1724071359699,2.3398,2591.7,2591.0,8.12890982]
[1724071359911,0.68780475,2591.9,2591.0,7.27871982]
[1724071359912,2.3398,2591.3,2591.0,7.27871982]
[1724071360057,2.3398,2591.3,2590.6,20.51913658]
[1724071360257,0.619872,2591.2,2590.6,7.27871982]
[1724071360457,6.19897,2591.3,2590.6,7.27871982]
[1724071360693,0.05636219,2591.2,2590.6,7.27871982]
[1724071361268,0.05636219,2591.2,2590.6,8.2528418]
[1724071361595,0.05636219,2591.2,2590.7,3.0]
[1724071363308,2.3398,2591.3,2590.7,3.0]
[1724071363493,0.05569662,2591.1,2590.7,3.0]
[1724071363662,2.3398,2591.3,2590.7,3.0]
[1724071363884,0.05569662,2591.2,2590.7,3.0]
[1724071364116,2.959663,2591.3,2590.7,3.0]
[1724071364266,0.05569662,2591.1,2590.7,3.0]
[1724071364606,2.4781,2591.0,2590.7,3.0]
[1724071364767,2.53376636,2591.0,2590.7,3.0]
[1724071366778,2.53376636,2591.0,2590.6,3.0]
[1724071366979,2.4781,2591.0,2590.6,3.0]
[1724071367380,0.05566636,2590.9,2590.6,3.0]
[1724071369113,0.05566636,2590.9,2590.3,3.85049058]
[1724071370985,0.05566636,2590.9,2590.3,3.0]
[1724071372020,0.05566636,2590.9,2590.0,0.85049058]
[1724071372021,3.85996,2590.7,2590.0,0.85049058]
[1724071372224,6.13105,2590.5,2589.8,8.1292104]
[1724071372384,6.13105,2590.5,2589.7,0.85049058]
[1724071372385,2.2707,2590.4,2589.7,0.85049058]
[1724071372586,2.97770175,2590.4,2589.6,4.024]
[1724071373007,2.97770175,2590.4,2589.6,4.87472576]
[1724071373210,2.97770175,2590.4,2589.6,4.024]
[1724071373532,2.32599715,2590.4,2589.6,4.024]
[1724071374173,2.32599715,2590.4,2589.7,3.0]
[1724071375215,2.2707,2590.4,2589.7,3.0]
[1724071375387,0.05496411,2590.3,2589.9,4.024]
[1724071376826,0.05496411,2590.3,2590.1,4.024]
[1724071377118,2.3693,2590.6,2590.1,4.024]
[1724071377119,2.3693,2590.6,2590.2,3.0]
[1724071377343,2.3693,2590.6,2590.2,3.7024]
[1724071377729,2.3897,2590.9,2590.2,3.7024]
[1724071377933,2.3897,2590.9,2590.2,3.0]